{"text_format":"1","workbook":"xlsx","n_sheets":1,"sheets":["Synthese"],"not_rendered":{"charts":0,"images":0,"macros":1,"external_links":0,"defined_names":1,"comments":0,"pivot_tables":0},"unopened":[],"bounds":{"document_bytes":16777216,"sheet_cells":100000,"rows_first":2000,"rows_last":500,"rows_between":2000,"halvings":0,"cell_chars":16384,"cell_head_chars":4096},"cells_cut":0,"cells_raw":0,"read":"whole","date_system":"1900"}

{"sheet":"Synthese","index":0,"n_rows":87,"n_cols":3,"rows_kept":87,"cut":false,"hidden":false,"merged":[]}
[]
[]
[]
[]
[]
[]
["Nom de L'élève","Niveau","Coordonnées"]
["Eleve1","CP",{"$f":"$C$7&\" \"&A8","v":"Coordonnées Eleve1"}]
["Eleve2","CP",{"$f":"$C$7&\" \"&A9","v":"Coordonnées Eleve2"}]
["Eleve3","CM2","Coordonnées Eleve3"]
["Eleve4","CM2","Coordonnées Eleve4"]
["Eleve5","CM2","Coordonnées Eleve5"]
["Eleve6","CM2","Coordonnées Eleve6"]
["Eleve7","CM2","Coordonnées Eleve7"]
["Eleve8","CM2","Coordonnées Eleve8"]
["Eleve9","CM2","Coordonnées Eleve9"]
["Eleve10","CP","Coordonnées Eleve10"]
["Eleve11","CP","Coordonnées Eleve11"]
["Eleve12","CP","Coordonnées Eleve12"]
["Eleve13","CP","Coordonnées Eleve13"]
["Eleve14","CP","Coordonnées Eleve14"]
["Eleve15","CP","Coordonnées Eleve15"]
["Eleve16","CP","Coordonnées Eleve16"]
["Eleve17","CP","Coordonnées Eleve17"]
["Eleve18","CP","Coordonnées Eleve18"]
["Eleve19","CP","Coordonnées Eleve19"]
["Eleve20","CP","Coordonnées Eleve20"]
["Eleve21","CE1","Coordonnées Eleve21"]
["Eleve22","CE1","Coordonnées Eleve22"]
["Eleve23","CE1","Coordonnées Eleve23"]
["Eleve24","CE1","Coordonnées Eleve24"]
["Eleve25","CE1","Coordonnées Eleve25"]
["Eleve26","CE1","Coordonnées Eleve26"]
["Eleve27","CM1","Coordonnées Eleve27"]
["Eleve28","CM1","Coordonnées Eleve28"]
["Eleve29","CM1","Coordonnées Eleve29"]
["Eleve30","CM1","Coordonnées Eleve30"]
["Eleve31","CM1","Coordonnées Eleve31"]
["Eleve32","CM1","Coordonnées Eleve32"]
["Eleve33","CM1","Coordonnées Eleve33"]
["Eleve34","CE1","Coordonnées Eleve34"]
["Eleve35","CE1","Coordonnées Eleve35"]
["Eleve36","CE1","Coordonnées Eleve36"]
["Eleve37","CE1","Coordonnées Eleve37"]
["Eleve38","CE1","Coordonnées Eleve38"]
["Eleve39","CE1","Coordonnées Eleve39"]
["Eleve40","CE1","Coordonnées Eleve40"]
["Eleve41","CE1","Coordonnées Eleve41"]
["Eleve42","CE1","Coordonnées Eleve42"]
["Eleve43","CE1","Coordonnées Eleve43"]
["Eleve44","CE1","Coordonnées Eleve44"]
["Eleve45","CE1","Coordonnées Eleve45"]
["Eleve46","CE1","Coordonnées Eleve46"]
["Eleve47","CE1","Coordonnées Eleve47"]
["Eleve48","CE1","Coordonnées Eleve48"]
["Eleve49","CE1","Coordonnées Eleve49"]
["Eleve50","CE1","Coordonnées Eleve50"]
["Eleve51","CE1","Coordonnées Eleve51"]
["Eleve52","CE1","Coordonnées Eleve52"]
["Eleve53","CE1","Coordonnées Eleve53"]
["Eleve54","CP","Coordonnées Eleve54"]
["Eleve55","CP","Coordonnées Eleve55"]
["Eleve56","CP","Coordonnées Eleve56"]
["Eleve57","CP","Coordonnées Eleve57"]
["Eleve58","CE1","Coordonnées Eleve58"]
["Eleve59","CE1","Coordonnées Eleve59"]
["Eleve60","CE1","Coordonnées Eleve60"]
["Eleve61","CE1","Coordonnées Eleve61"]
["Eleve62","CE1","Coordonnées Eleve62"]
["Eleve63","CE2","Coordonnées Eleve63"]
["Eleve64","CE2","Coordonnées Eleve64"]
["Eleve65","CE2","Coordonnées Eleve65"]
["Eleve66","CM1",{"$f":"$C$7&\" \"&A73","v":"Coordonnées Eleve66"}]
["Eleve67","CM1","Coordonnées Eleve67"]
["Eleve68","CM1","Coordonnées Eleve68"]
["Eleve69","CM1","Coordonnées Eleve69"]
["Eleve70","CE2","Coordonnées Eleve70"]
["Eleve71","CE2","Coordonnées Eleve71"]
["Eleve72","CE2","Coordonnées Eleve72"]
["Eleve73","CE2","Coordonnées Eleve73"]
["Eleve74","CE2","Coordonnées Eleve74"]
["Eleve75","CE2","Coordonnées Eleve75"]
["Eleve76","CE2","Coordonnées Eleve76"]
["Eleve77","CE2","Coordonnées Eleve77"]
["Eleve78","CM2","Coordonnées Eleve78"]
["Eleve79","CM2","Coordonnées Eleve79"]
["Eleve80","CM2","Coordonnées Eleve80"]